fUSD/lending_fUSD_20260702
["ID","MTS","AMOUNT","RATE_DAILY","PERIOD"]
[426875156,1782973566000,533.13,0.000301,120]
[426875157,1782973633000,20500.0,0.0003,120]
[426875170,1782973740000,2000.0,0.00030136,120]
[426875172,1782973831000,315.51,0.00019199,2]
[426875181,1782973832000,-800.15,0.00021273,2]
[426875183,1782973832000,-329.64334495,0.00021293,2]
[426875185,1782973832000,-200.0,0.00021343,2]
[426875202,1782973832000,-999.99,0.00022141,2]
[426875193,1782973832000,-329.16,0.00021343,7]
[426875194,1782973832000,-150.0,0.00021492,2]
[426875195,1782973832000,-150.0,0.00021705,2]
[426875187,1782973832000,-200.0,0.00021343,2]
[426875200,1782973832000,-4469.249027,0.00022141,2]
[426875199,1782973832000,-1586.09861325,0.00022141,2]
[426875197,1782973832000,-970.43120601,0.00022141,2]
[426875182,1782973832000,-198.0,0.0002128,2]
[426875179,1782973832000,-775.20627093,0.00021173,2]
[426875184,1782973832000,-214.81029857,0.00021293,2]
[426875189,1782973832000,-41.2378534,0.00021343,2]
[426875188,1782973832000,-158.7621466,0.00021343,2]
[426875191,1782973832000,-200.0,0.00021343,7]
[426875190,1782973832000,-200.0,0.00021343,7]
[426875198,1782973832000,-646.62018074,0.00022141,2]
[426875192,1782973832000,-200.0,0.00021343,7]
[426875180,1782973832000,-315.51,0.0002122,2]
[426875175,1782973832000,-394.39,0.0002021,2]
[426875177,1782973832000,-92.11955282,0.0002021,2]
[426875178,1782973832000,-234.68992513,0.00021173,2]
[426875176,1782973832000,-223.39044718,0.0002021,2]
[426875186,1782973832000,-200.0,0.00021343,2]
[426875204,1782973832000,-221.50595725,0.00022219,2]
[426875224,1782973832000,-1806.79,0.00023019,2]
[426875201,1782973832000,-1240.070973,0.00022141,2]
[426875196,1782973832000,-225.0,0.00021917,2]
[426875229,1782973832000,-1000.0,0.00023415,2]
[426875227,1782973832000,-702.6873,0.00023316,2]
[426875222,1782973832000,-156.72,0.00022935,2]
[426875223,1782973832000,-315.51,0.00022965,2]
[426875226,1782973832000,-315.51,0.00023167,2]
[426875225,1782973832000,-423.59,0.00023127,2]
[426875219,1782973832000,-250.0,0.00022625,2]
[426875221,1782973832000,-197.0,0.0002284,2]
[426875220,1782973832000,-466.51,0.00022782,2]
[426875230,1782973832000,-203.42284233,0.00023475,2]
[426875218,1782973832000,-394.39,0.00022337,2]
[426875214,1782973832000,-7454.65,0.00022293,2]
[426875228,1782973832000,-7958.5264,0.00023316,2]
[426875217,1782973832000,-9999.99,0.00022293,2]
[426875213,1782973832000,-150.99,0.00022293,2]
[426875205,1782973832000,-162.55,0.0002222,2]
[426875203,1782973832000,-2140.56,0.00022141,2]
[426875206,1782973832000,-1115.32306975,0.0002222,2]
[426875208,1782973832000,-651.72622502,0.0002222,2]
[426875207,1782973832000,-1300.0,0.0002222,2]
[426875215,1782973832000,-1577.6,0.00022293,2]
[426875216,1782973832000,-2010.47,0.00022293,2]
[426875210,1782973832000,-1031.2298647,0.0002222,2]
[426875211,1782973832000,-140226.60689608,0.0002222,2]
[426875212,1782973832000,-302.25,0.00022293,2]
[426875209,1782973832000,-6005.26394445,0.0002222,2]
[426875272,1782973833000,-500.0,0.00024383,2]
[426875265,1782973833000,-250.0,0.00024383,2]
[426875266,1782973833000,-500.0,0.00024383,2]
[426875267,1782973833000,-500.0,0.00024383,2]
[426875260,1782973833000,-500.0,0.00024383,2]
[426875271,1782973833000,-500.0,0.00024383,2]
[426875273,1782973833000,-500.0,0.00024383,2]
[426875263,1782973833000,-500.0,0.00024383,2]
[426875257,1782973833000,-500.0,0.00024383,2]
[426875269,1782973833000,-500.0,0.00024383,2]
[426875264,1782973833000,-500.0,0.00024383,2]
[426875276,1782973833000,-500.0,0.00024383,2]
[426875268,1782973833000,-250.0,0.00024383,2]
[426875282,1782973833000,-198.0,0.0002445,2]
[426875281,1782973833000,-1627.07369596,0.00024444,2]
[426875284,1782973833000,-150.0,0.00024513,2]
[426875286,1782973833000,-201.28724746,0.00024513,2]
[426875283,1782973833000,-216.6671885,0.0002451,2]
[426875274,1782973833000,-329.57946474,0.00024383,2]
[426875277,1782973833000,-250.0,0.00024383,2]
[426875278,1782973833000,-500.0,0.00024383,2]
[426875279,1782973833000,-270.42081851,0.00024383,2]
[426875280,1782973833000,-630.90347374,0.00024383,2]
[426875262,1782973833000,-500.0,0.00024383,2]
[426875270,1782973833000,-500.0,0.00024383,2]
[426875261,1782973833000,-500.0,0.00024383,2]
[426875238,1782973833000,-197.0,0.00024209,2]
[426875252,1782973833000,-500.0,0.00024383,2]
[426875236,1782973833000,-500.0,0.00024,2]
[426875233,1782973833000,-154.0,0.00024,2]
[426875231,1782973833000,-1627.07369596,0.00023692,2]
[426875234,1782973833000,-165.0,0.00024,2]
[426875232,1782973833000,-156.0,0.00024,2]
[426875237,1782973833000,-1627.07369596,0.00024068,2]
[426875235,1782973833000,-150.0,0.00024,2]
[426875249,1782973833000,-150.0,0.00024383,2]
[426875243,1782973833000,-150.0,0.00024383,2]
[426875245,1782973833000,-150.0,0.00024383,2]
[426875247,1782973833000,-150.0,0.00024383,2]
[426875240,1782973833000,-150.0,0.00024383,2]
[426875248,1782973833000,-150.0,0.00024383,2]
[426875239,1782973833000,-500.0,0.00024274,2]
[426875241,1782973833000,-150.0,0.00024383,2]
[426875244,1782973833000,-206.91786761,0.00024383,2]
[426875242,1782973833000,-150.0,0.00024383,2]
[426875246,1782973833000,-219.35237659,0.00024383,2]
[426875253,1782973833000,-500.0,0.00024383,2]
[426875255,1782973833000,-500.0,0.00024383,2]
[426875256,1782973833000,-500.0,0.00024383,2]
[426875251,1782973833000,-157.24318069,0.00024383,2]
[426875259,1782973833000,-576.98799893,0.00024383,2]
[426875254,1782973833000,-500.0,0.00024383,2]
[426875250,1782973833000,-241.80115163,0.00024383,2]
[426875258,1782973833000,-500.0,0.00024383,2]
[426875285,1782973833000,-150.0,0.00024513,2]
[426875275,1782973833000,-202.67610635,0.00024383,2]
[426875289,1782973833000,-250.0,0.00024657,2]
[426875316,1782973833000,-500.0,0.00025525,2]
[426875320,1782973833000,-500.0,0.00025525,2]
[426875318,1782973833000,-500.0,0.00025525,2]
[426875329,1782973833000,-610.26852698,0.00025561,2]
[426875321,1782973833000,-500.0,0.00025525,2]
[426875330,1782973833000,-212.54917067,0.00025561,2]
[426875324,1782973833000,-500.0,0.00025525,2]
[426875331,1782973833000,-1627.07369596,0.00025572,2]
[426875322,1782973833000,-500.0,0.00025525,2]
[426875325,1782973833000,-500.0,0.00025525,2]
[426875323,1782973833000,-500.0,0.00025525,2]
[426875328,1782973833000,-388.29371761,0.00025561,2]
[426875327,1782973833000,-328.46275027,0.00025525,2]
[426875332,1782973833000,-500.0,0.00025848,2]
[426875326,1782973833000,-500.0,0.00025525,2]
[426875333,1782973833000,-500.0,0.00025848,2]
[426875341,1782973833000,-616.0,0.00025848,2]
[426875338,1782973833000,-500.0,0.00025848,2]
[426875339,1782973833000,-500.0,0.00025848,2]
[426875334,1782973833000,-500.0,0.00025848,2]
[426875342,1782973833000,-1627.07369596,0.00025948,2]
[426875337,1782973833000,-251.96742602,0.00025848,2]
[426875335,1782973833000,-500.0,0.00025848,2]
[426875336,1782973833000,-500.0,0.00025848,2]
[426875288,1782973833000,-5000.0,0.00024612,2]
[426875319,1782973833000,-500.0,0.00025525,2]
[426875311,1782973833000,-154.0,0.00025,2]
[426875340,1782973833000,-500.0,0.00025848,2]
[426875317,1782973833000,-500.0,0.00025525,2]
[426875314,1782973833000,-1627.07369596,0.00025196,2]
[426875297,1782973833000,-2500.0,0.000248,2]
[426875287,1782973833000,-500.0,0.00024548,2]
[426875292,1782973833000,-164.0,0.00024658,2]
[426875295,1782973833000,-194.1468588,0.00024727,2]
[426875290,1782973833000,-250.0,0.00024657,2]
[426875296,1782973833000,-406.84568465,0.00024727,2]
[426875291,1782973833000,-153.87,0.00024658,2]
[426875293,1782973833000,-164.27,0.00024658,2]
[426875299,1782973833000,-163.37,0.00024805,2]
[426875309,1782973833000,-156.0,0.00025,2]
[426875300,1782973833000,-1627.07369596,0.0002482,2]
[426875294,1782973833000,-153.6,0.00024659,2]
[426875301,1782973833000,-152.66322161,0.00024967,2]
[426875315,1782973833000,-500.0,0.00025525,2]
[426875298,1782973833000,-200.0,0.00024804,2]
[426875312,1782973833000,-30905.12,0.00025,2]
[426875313,1782973833000,-206.0,0.00025073,2]
[426875310,1782973833000,-14218.06,0.00025,2]
[426875306,1782973833000,-4773.91,0.00025,2]
[426875308,1782973833000,-1523.52,0.00025,2]
[426875302,1782973833000,-500.0,0.00024999,2]
[426875304,1782973833000,-14541.7,0.00025,2]
[426875305,1782973833000,-14541.7,0.00025,2]
[426875307,1782973833000,-200.2142753,0.00025,2]
[426875303,1782973833000,-2104.45,0.00025,3]
[426875367,1782973834000,-119.86488826,0.00026117,2]
[426875359,1782973834000,-218.47797966,0.00026117,2]
[426875362,1782973834000,-813.6913693,0.00026117,2]
[426875366,1782973834000,-194.04134528,0.00026117,2]
[426875368,1782973834000,-169.48591583,0.00026117,2]
[426875363,1782973834000,-425.09834133,0.00026117,2]
[426875370,1782973834000,-428.04263791,0.00026117,2]
[426875369,1782973834000,-167.52780625,0.00026117,2]
[426875376,1782973834000,-267.79038048,0.00026117,2]
[426875372,1782973834000,-388.38969193,0.00026117,2]
[426875374,1782973834000,-368.49119015,0.00026117,2]
[426875373,1782973834000,-304.63168673,0.00026117,2]
[426875375,1782973834000,-393.56554576,0.00026117,2]
[426875358,1782973834000,-431.70557937,0.00026117,2]
[426875386,1782973834000,-339.96397921,0.00026122,2]
[426875371,1782973834000,-337.37375833,0.00026117,2]
[426875364,1782973834000,-353.29054109,0.00026117,2]
[426875348,1782973834000,-156.0,0.00026,2]
[426875361,1782973834000,-582.44057641,0.00026117,2]
[426875377,1782973834000,-160.73161154,0.00026117,2]
[426875343,1782973834000,-150.0,0.00025953,5]
[426875350,1782973834000,-169.59958435,0.00026,2]
[426875345,1782973834000,-17450.24,0.00026,2]
[426875344,1782973834000,-17450.24,0.00026,2]
[426875346,1782973834000,-5728.89,0.00026,2]
[426875351,1782973834000,-1221.14485155,0.00026,2]
[426875360,1782973834000,-311.31750956,0.00026117,2]
[426875347,1782973834000,-1828.42,0.00026,2]
[426875352,1782973834000,-35865.20514845,0.00026,2]
[426875353,1782973834000,-679.0,0.00026012,5]
[426875365,1782973834000,-177.4123005,0.00026117,2]
[426875355,1782973834000,-669.0,0.00026034,5]
[426875356,1782973834000,-674.0,0.00026055,5]
[426875354,1782973834000,-674.0,0.00026022,5]
[426875357,1782973834000,-669.0,0.00026089,5]
[426875349,1782973834000,-17061.88,0.00026,2]
[426875379,1782973834000,-179.81985592,0.00026117,2]
[426875394,1782973834000,-384.80957959,0.00026122,2]
[426875378,1782973834000,-293.52280167,0.00026117,2]
[426875399,1782973834000,-360.18773848,0.00026123,2]
[426875403,1782973834000,-366.77494221,0.00026123,2]
[426875405,1782973834000,-375.93466809,0.00026123,2]
[426875406,1782973834000,-313.51053462,0.00026123,2]
[426875404,1782973834000,-361.71706959,0.00026123,2]
[426875407,1782973834000,-237.412993,0.00026124,2]
[426875410,1782973834000,-685.0,0.00026243,5]
[426875402,1782973834000,-167.49131498,0.00026123,2]
[426875418,1782973834000,-675.0,0.00026408,5]
[426875414,1782973834000,-269.36825998,0.00026404,14]
[426875380,1782973834000,-395.04564656,0.00026117,2]
[426875413,1782973834000,-800.0,0.000264,9]
[426875415,1782973834000,-475.19753984,0.00026404,14]
[426875412,1782973834000,-237.412993,0.00026349,2]
[426875417,1782973834000,-961.8246,0.00026404,14]
[426875416,1782973834000,-710.8670999,0.00026404,14]
[426875411,1782973834000,-1627.07369596,0.00026324,2]
[426875401,1782973834000,-397.42917539,0.00026123,2]
[426875409,1782973834000,-2138.37,0.00026154,2]
[426875408,1782973834000,-686.0,0.00026147,5]
[426875381,1782973834000,-449.80253241,0.00026122,2]
[426875382,1782973834000,-157.81024348,0.00026122,2]
[426875383,1782973834000,-265.16606462,0.00026122,2]
[426875385,1782973834000,-428.36079753,0.00026122,2]
[426875384,1782973834000,-440.40311146,0.00026122,2]
[426875392,1782973834000,-314.49866899,0.00026122,2]
[426875388,1782973834000,-358.2212488,0.00026122,2]
[426875400,1782973834000,-392.10498283,0.00026123,2]
[426875390,1782973834000,-319.80551305,0.00026122,2]
[426875393,1782973834000,-231.75465955,0.00026122,2]
[426875391,1782973834000,-431.38476967,0.00026122,2]
[426875387,1782973834000,-285.47829186,0.00026122,2]
[426875389,1782973834000,-406.62128354,0.00026122,2]
[426875398,1782973834000,-302.93218442,0.00026123,2]
[426875395,1782973834000,-313.75617406,0.00026122,2]
[426875396,1782973834000,-427.51082192,0.00026122,2]
[426875397,1782973834000,-406.50788367,0.00026123,2]
[426875419,1782973835000,-1600.0,0.000265,9]
[426875420,1782973835000,-260.0,0.00026521,2]
[426875421,1782973835000,-150.0,0.00026526,2]
[426875423,1782973835000,-238.78748961,0.00026526,2]
[426875424,1782973835000,-237.412993,0.00026574,2]
[426875425,1782973835000,-23.26276564,0.000266,9]
[426875422,1782973835000,-150.0,0.00026526,2]
[426875458,1782973838000,-1627.07369596,0.000267,2]
[426875451,1782973838000,-803.3,0.00026699,2]
[426875454,1782973838000,-8601.5539,0.000267,2]
[426875452,1782973838000,-11204.35324068,0.000267,20]
[426875456,1782973838000,-33361.7046,0.000267,2]
[426875453,1782973838000,-13478.47288277,0.000267,20]
[426875450,1782973838000,-500.0,0.00026699,2]
[426875449,1782973838000,-189.38207532,0.00026699,2]
[426875455,1782973838000,-2000.0,0.000267,2]
[426875447,1782973838000,-357.37499878,0.00026697,2]
[426875446,1782973838000,-673.0,0.00026687,5]
[426875445,1782973838000,-177.08377207,0.00026666,2]
[426875444,1782973838000,-152.66322154,0.00026647,2]
[426875443,1782973838000,-2376.73723436,0.000266,9]
[426875442,1782973838000,-164.58,0.00025571,7]
[426875441,1782973838000,-2017.66757934,0.00024973,2]
[426875439,1782973838000,-153.89475654,0.00022219,2]
[426875440,1782973838000,-164.58,0.00024658,2]
[426875457,1782973838000,-10345.0977,0.000267,2]
[426875448,1782973838000,-357.37499877,0.00026699,2]
[426875459,1782973838000,-3200.0,0.000267,9]
[426875474,1782973838000,-29522.21338,0.00026797,2]
[426875464,1782973838000,-350.0,0.00026718,8]
[426875460,1782973838000,-357.37499877,0.000267,2]
[426875480,1782973838000,-500.0,0.00026799,2]
[426875482,1782973838000,-500.0,0.00026799,2]
[426875481,1782973838000,-500.0,0.00026799,2]
[426875479,1782973838000,-500.0,0.00026799,2]
[426875473,1782973838000,-151.0,0.00026797,7]
[426875469,1782973838000,-500.0,0.00026796,2]
[426875476,1782973838000,-7854.4937379,0.00026797,2]
[426875472,1782973838000,-2035.4669876,0.00026797,2]
[426875477,1782973838000,-2361.8702689,0.00026797,2]
[426875478,1782973838000,-500.0,0.00026799,2]
[426875471,1782973838000,-151.0,0.00026797,7]
[426875470,1782973838000,-151.0,0.00026797,7]
[426875468,1782973838000,-327.59807589,0.0002679,2]
[426875466,1782973838000,-503.07519474,0.00026773,2]
[426875467,1782973838000,-327.59807589,0.0002679,2]
[426875461,1782973838000,-1030.3340214,0.000267,2]
[426875465,1782973838000,-156.72,0.00026757,2]
[426875463,1782973838000,-260.95,0.00026718,8]
[426875475,1782973838000,-308390.2277282,0.00026797,2]
[426875462,1782973838000,-208.68175767,0.000267,2]
[426875498,1782973839000,-500.0,0.00026799,2]
[426875501,1782973839000,-500.0,0.00026799,2]
[426875503,1782973839000,-500.0,0.00026799,2]
[426875504,1782973839000,-500.0,0.00026799,2]
[426875506,1782973839000,-500.0,0.00026799,2]
[426875508,1782973839000,-500.0,0.00026799,2]
[426875514,1782973839000,-500.0,0.00026799,2]
[426875512,1782973839000,-507.52188557,0.00026799,2]
[426875511,1782973839000,-500.0,0.00026799,2]
[426875510,1782973839000,-500.0,0.00026799,2]
[426875521,1782973839000,-500.0,0.00026799,2]
[426875519,1782973839000,-500.0,0.00026799,2]
[426875502,1782973839000,-500.0,0.00026799,2]
[426875509,1782973839000,-500.0,0.00026799,2]
[426875507,1782973839000,-500.0,0.00026799,2]
[426875496,1782973839000,-500.0,0.00026799,2]
[426875499,1782973839000,-500.0,0.00026799,2]
[426875483,1782973839000,-500.0,0.00026799,2]
[426875484,1782973839000,-635.17267934,0.00026799,2]
[426875485,1782973839000,-172.24993325,0.00026799,2]
[426875486,1782973839000,-237.412994,0.00026799,2]
[426875487,1782973839000,-500.0,0.00026799,2]
[426875489,1782973839000,-500.0,0.00026799,2]
[426875518,1782973839000,-500.0,0.00026799,2]
[426875495,1782973839000,-500.0,0.00026799,2]
[426875491,1782973839000,-500.0,0.00026799,2]
[426875493,1782973839000,-500.0,0.00026799,2]
[426875494,1782973839000,-500.0,0.00026799,2]
[426875497,1782973839000,-500.0,0.00026799,2]
[426875492,1782973839000,-500.0,0.00026799,2]
[426875490,1782973839000,-500.0,0.00026799,2]
[426875488,1782973839000,-500.0,0.00026799,2]
[426875500,1782973839000,-500.0,0.00026799,2]
[426875513,1782973839000,-500.0,0.00026799,2]
[426875505,1782973839000,-500.0,0.00026799,2]
[426875520,1782973839000,-500.0,0.00026799,2]
[426875540,1782973839000,-803.3,0.00026799,2]
[426875543,1782973839000,-803.3,0.00026799,2]
[426875546,1782973839000,-803.3,0.00026799,2]
[426875539,1782973839000,-803.3,0.00026799,2]
[426875536,1782973839000,-803.3,0.00026799,2]
[426875541,1782973839000,-803.3,0.00026799,2]
[426875538,1782973839000,-803.3,0.00026799,2]
[426875544,1782973839000,-803.3,0.00026799,2]
[426875545,1782973839000,-803.3,0.00026799,2]
[426875548,1782973839000,-803.5067645,0.00026799,2]
[426875549,1782973839000,-503.97715691,0.00026799,2]
[426875550,1782973839000,-84595.64269131,0.000268,2]
[426875552,1782973839000,-350.0,0.000268,2]
[426875551,1782973839000,-4102275.5127118,0.000268,2]
[426875542,1782973839000,-803.3,0.00026799,2]
[426875535,1782973839000,-803.3,0.00026799,2]
[426875547,1782973839000,-803.3,0.00026799,2]
[426875532,1782973839000,-803.3,0.00026799,2]
[426875516,1782973839000,-500.0,0.00026799,2]
[426875517,1782973839000,-500.0,0.00026799,2]
[426875533,1782973839000,-803.3,0.00026799,2]
[426875523,1782973839000,-500.0,0.00026799,2]
[426875534,1782973839000,-803.3,0.00026799,2]
[426875537,1782973839000,-803.3,0.00026799,2]
[426875524,1782973839000,-481.21638394,0.00026799,2]
[426875522,1782973839000,-500.0,0.00026799,2]
[426875525,1782973839000,-3000.0,0.00026799,2]
[426875530,1782973839000,-803.3,0.00026799,2]
[426875531,1782973839000,-803.3,0.00026799,2]
[426875528,1782973839000,-803.3,0.00026799,2]
[426875529,1782973839000,-803.3,0.00026799,2]
[426875527,1782973839000,-803.3,0.00026799,2]
[426875526,1782973839000,-803.3,0.00026799,2]
[426875515,1782973839000,-500.0,0.00026799,2]
[426875563,1782973845000,-316.36825523,0.00026088,2]
[426875562,1782973845000,-559.10943858,0.000268,2]
[426875569,1782973857000,193416.8979,0.00023316,120]
[426875573,1782973973000,117638.0517,0.00023316,120]
[426875574,1782974308000,208589.186,0.00023571,120]
[426875575,1782974334000,172.85,0.0001981,2]
[426875579,1782974686000,150.06,0.00028479,120]
[426875582,1782974773000,19244.97541617,0.00013,5]
[426875591,1782974868000,392.0301,0.0001993,2]
[426875595,1782974906000,2000.0,0.000301,120]
[426875598,1782974929000,2000.0,0.000301,120]
[426875599,1782974940000,2000.0,0.00030135,120]
[426875602,1782974971000,2000.0,0.000301,120]
[426875636,1782975031000,-30926.62,0.00023555,2]
[426875625,1782975031000,-1146.18,0.00022466,2]
[426875633,1782975031000,-512.26047158,0.00023554,2]
[426875649,1782975031000,-159.48904749,0.00024,2]
[426875629,1782975031000,-150.0,0.00023218,2]
[426875632,1782975031000,-153.89475654,0.00023554,2]
[426875627,1782975031000,-273.60048054,0.00022736,2]
[426875631,1782975031000,-177.08377207,0.00023553,2]
[426875634,1782975031000,-500.0,0.00023554,2]
[426875630,1782975031000,-161.25,0.00023473,2]
[426875628,1782975031000,-314.45,0.0002296,2]
[426875643,1782975031000,-2000.0,0.00023671,2]
[426875626,1782975031000,-314.45,0.0002259,2]
[426875622,1782975031000,-9999.99,0.00022219,2]
[426875624,1782975031000,-999.99,0.00022219,2]
[426875621,1782975031000,-2577.63,0.00022219,2]
[426875618,1782975031000,-299.99,0.0002212,7]
[426875614,1782975031000,-314.45,0.00021849,2]
[426875615,1782975031000,-273.60048054,0.000219,2]
[426875617,1782975031000,-250.0,0.0002212,2]
[426875612,1782975031000,-314.52,0.00021114,2]
[426875620,1782975031000,-314.45,0.00022219,2]
[426875613,1782975031000,-314.45,0.00021479,2]
[426875616,1782975031000,-177.51892134,0.00022,2]
[426875619,1782975031000,-1525.74,0.0002212,2]
[426875609,1782975031000,-250.0,0.00020609,2]
[426875611,1782975031000,-314.45,0.00021109,2]
[426875610,1782975031000,-153.0,0.00020815,2]
[426875608,1782975031000,-202.82439473,0.00020109,2]
[426875623,1782975031000,-150.99,0.00022219,2]
[426875654,1782975031000,-157.0,0.00024,2]
[426875665,1782975031000,-7769.69,0.00024174,2]
[426875641,1782975031000,-33182.0023,0.00023671,2]
[426875638,1782975031000,-273.60048054,0.00023571,2]
[426875689,1782975031000,-216.94185006,0.00024961,2]
[426875686,1782975031000,-262.46,0.00024911,2]
[426875685,1782975031000,-500.0,0.00024904,2]
[426875681,1782975031000,-156.76038556,0.00024735,2]
[426875680,1782975031000,-1112.48,0.00024666,2]
[426875683,1782975031000,-481.79,0.00024845,2]
[426875687,1782975031000,-706.4,0.00024961,7]
[426875682,1782975031000,-2401.89,0.00024761,2]
[426875688,1782975031000,-7769.69,0.00024961,7]
[426875684,1782975031000,-159.2,0.00024883,2]
[426875678,1782975031000,-157.07,0.00024658,2]
[426875677,1782975031000,-156.95,0.00024658,2]
[426875675,1782975031000,-161.25,0.00024647,2]
[426875679,1782975031000,-504.08865584,0.00024658,2]
[426875673,1782975031000,-467.13,0.00024563,2]
[426875650,1782975031000,-152.0,0.00024,2]
[426875676,1782975031000,-153.87,0.00024658,2]
[426875645,1782975031000,-500.77494742,0.00023703,2]
[426875647,1782975031000,-166.0,0.00024,2]
[426875652,1782975031000,-164.0,0.00024,2]
[426875657,1782975031000,-3728.81,0.00024103,2]
[426875659,1782975031000,-1613.38,0.00024174,2]
[426875663,1782975031000,-674.14,0.00024174,2]
[426875661,1782975031000,-397.4,0.00024174,2]
[426875669,1782975031000,-503.0,0.00024247,2]
[426875672,1782975031000,-1014.87,0.00024515,2]
[426875670,1782975031000,-150.06,0.00024411,2]
[426875666,1782975031000,-5000.0,0.00024177,2]
[426875674,1782975031000,-153.98,0.00024643,2]
[426875702,1782975032000,-152.0,0.00025,2]
[426875703,1782975032000,-164.0,0.00025,2]
[426875706,1782975032000,-171.74529817,0.00025566,2]
[426875705,1782975032000,-166.6,0.00025409,2]
[426875709,1782975032000,-1216.97039681,0.00025714,2]
[426875704,1782975032000,-169.0,0.00025,2]
[426875700,1782975032000,-503.97715691,0.00024999,2]
[426875708,1782975032000,-350.0,0.00025623,2]
[426875710,1782975032000,-1978.12154748,0.00025721,2]
[426875701,1782975032000,-216.6671885,0.00025,2]
[426875694,1782975032000,-500.0,0.00024999,2]
[426875699,1782975032000,-500.0,0.00024999,2]
[426875697,1782975032000,-500.0,0.00024999,2]
[426875696,1782975032000,-500.0,0.00024999,2]
[426875695,1782975032000,-500.0,0.00024999,2]
[426875692,1782975032000,-5684.8291,0.00024962,2]
[426875691,1782975032000,-4378.4826,0.00024962,2]
[426875693,1782975032000,-152.61433435,0.00024967,2]
[426875690,1782975032000,-155.05417007,0.00024961,2]
[426875707,1782975032000,-313.52077112,0.00025569,2]
[426875711,1782975032000,-1143.66888825,0.00025721,2]
[426875713,1782975032000,-7824.07946288,0.00025721,2]
[426875698,1782975032000,-500.0,0.00024999,2]
[426875714,1782975032000,-156.95,0.00025753,7]
[426875734,1782975032000,-16845.72296031,0.000258,2]
[426875735,1782975032000,-1801.3306573,0.000258,2]
[426875732,1782975032000,-28408.15930856,0.000258,2]
[426875712,1782975032000,-1129.68999632,0.00025721,2]
[426875733,1782975032000,-1668.97568377,0.000258,2]
[426875730,1782975032000,-40722.8473437,0.000258,2]
[426875728,1782975032000,-1477.02291702,0.000258,2]
[426875727,1782975032000,-792.77143306,0.000258,2]
[426875729,1782975032000,-2927.46466822,0.000258,2]
[426875726,1782975032000,-1367.27187613,0.000258,2]
[426875731,1782975032000,-3076.67817095,0.000258,2]
[426875724,1782975032000,-42714.79905361,0.000258,2]
[426875723,1782975032000,-500.0,0.00025799,2]
[426875719,1782975032000,-500.0,0.00025799,2]
[426875722,1782975032000,-500.0,0.00025799,2]
[426875721,1782975032000,-500.0,0.00025799,2]
[426875720,1782975032000,-500.0,0.00025799,2]
[426875718,1782975032000,-500.0,0.00025799,2]
[426875716,1782975032000,-987.80974205,0.0002579,2]
[426875717,1782975032000,-500.0,0.00025799,2]
[426875715,1782975032000,-157.07,0.00025753,7]
[426875725,1782975032000,-181773.90587583,0.000258,2]
[426875739,1782975037000,-156.79,0.00024658,2]
[426875740,1782975037000,-156.79,0.00025753,7]
[426875742,1782975037000,-11143.93541388,0.000258,2]
[426875741,1782975037000,-18978.4118774,0.000258,2]
[426875773,1782975038000,-514.49947123,0.00026252,2]
[426875775,1782975038000,-1143.66888823,0.00026265,2]
[426875776,1782975038000,-1978.12154741,0.00026304,2]
[426875768,1782975038000,-1143.66888823,0.00026156,2]
[426875774,1782975038000,-1216.97039681,0.00026262,2]